bitfinex/quotes_ETHUSD_20250507
["timestamp","ask_amount","ask_price","bid_price","bid_amount"]
[1746594934079,5.46740135,1829.1,1828.7,11.73652736]
[1746594934575,5.46740135,1829.1,1828.7,6.26835504]
[1746594935379,5.46740135,1829.1,1828.7,0.8002]
[1746594935585,15.29886557,1829.3,1828.8,5.46790306]
[1746594935586,5.46698659,1829.2,1828.8,5.46790306]
[1746594935935,10.93411771,1829.2,1828.8,5.46790306]
[1746594936784,5.4671814,1829.1,1828.8,5.46790306]
[1746594936976,5.46781629,1828.9,1828.5,5.4687597]
[1746594937136,10.93541367,1829.0,1828.6,5.46861039]
[1746594937876,5.46767449,1829.0,1828.6,5.46861039]
[1746594938267,6.63637549,1829.0,1828.5,6.29697688]
[1746594938464,5.46788669,1828.9,1828.5,5.46877688]
[1746594938638,6.29618669,1828.9,1828.5,11.75724149]
[1746594939364,6.29618669,1828.9,1828.5,11.75723707]
[1746594939677,6.29618669,1828.9,1828.5,6.28846461]
[1746594939881,6.29618669,1828.9,1828.5,7.46422306]
[1746594941281,6.29618669,1828.9,1828.5,12.93301077]
[1746594941578,5.46767435,1829.0,1828.6,5.46866108]
[1746594941949,5.46767435,1829.0,1828.6,5.46848774]
[1746594942145,5.46767435,1829.0,1828.5,12.93303479]
[1746594942349,5.46767435,1829.0,1828.5,7.46422232]
[1746594942350,5.46786338,1828.9,1828.5,7.46422232]
[1746594942987,5.46767435,1829.0,1828.6,5.46862185]
[1746594943858,5.41767435,1829.0,1828.6,5.46862185]
[1746594944758,5.46778148,1828.9,1828.5,1.99545845]
[1746594944943,5.46820724,1828.8,1828.4,5.46910634]
[1746594945142,5.46876125,1828.6,1828.3,0.8153]
[1746594945390,5.46858133,1828.7,1828.3,6.28483602]
[1746594946251,5.46858133,1828.7,1828.3,6.2846517]
[1746594947089,5.46858133,1828.7,1828.3,11.75401463]
[1746594947447,5.46820148,1828.8,1828.4,5.4692593]
[1746594947648,8.46820148,1828.8,1828.4,5.86380282]
[1746594948087,5.46858528,1828.7,1828.4,0.39454352]
[1746594948387,5.46858528,1828.7,1828.3,8.23460108]
[1746594948586,5.46858528,1828.7,1828.5,0.39415683]
[1746594948786,5.46858528,1828.7,1828.3,6.28475057]
[1746594948987,5.46858528,1828.7,1828.6,0.39377018]
[1746594949279,5.46858528,1828.7,1828.3,11.75413325]
[1746594949471,5.46858528,1828.7,1828.6,0.39377018]
[1746594949668,8.4682634,1828.8,1828.4,5.46925144]
[1746594949867,5.4683655,1828.7,1828.6,0.39377018]
[1746594950071,5.4683655,1828.7,1828.5,0.39415683]
[1746594950273,5.4683655,1828.7,1828.6,0.39377018]
[1746594950582,5.4683655,1828.7,1828.4,5.46925144]
[1746594950765,5.4683655,1828.7,1828.6,0.39377018]
[1746594951084,5.4683655,1828.7,1828.4,5.46925144]
[1746594951384,13.93659752,1828.8,1828.5,0.39415683]
[1746594951580,5.46849641,1828.7,1828.5,0.39415683]
[1746594951747,5.46849641,1828.7,1828.3,6.28469602]
[1746594951949,8.46825355,1828.8,1828.6,0.39377018]
[1746594952177,8.46825355,1828.8,1828.3,6.28465416]
[1746594952178,5.4683655,1828.7,1828.3,6.28465416]
[1746594952383,5.4683655,1828.7,1828.3,11.75400832]
[1746594952685,5.4683655,1828.7,1828.4,5.46926007]
[1746594953784,5.4683655,1828.7,1828.3,8.23420404]
[1746594954488,5.4683655,1828.7,1828.4,5.46923204]
[1746594955351,5.4683655,1828.7,1828.3,8.23420404]
[1746594956788,5.4683655,1828.7,1828.3,2.76484988]
[1746594956968,5.4683655,1828.7,1828.3,13.70354199]
[1746594957165,8.46827232,1828.8,1828.4,5.46925442]
[1746594958392,5.46840524,1828.7,1828.4,5.46925442]
[1746594958790,8.46827232,1828.8,1828.4,5.46925442]
[1746594959157,5.46837828,1828.7,1828.4,5.46925442]
[1746594960303,5.46837828,1828.7,1828.3,8.23416795]
[1746594960463,8.46827232,1828.8,1828.3,8.23426772]
[1746594960665,3.0,1828.8,1828.5,0.7658]
[1746594960863,3.0,1828.8,1828.6,5.46857626]
[1746594961073,5.46761601,1829.0,1828.5,0.7658]
[1746594961074,0.8096,1829.0,1828.5,0.7658]
[1746594961278,1.39912587,1829.3,1828.5,0.7658]
[1746594961279,3.8096,1829.1,1828.5,0.7658]
[1746594961477,5.46808139,1828.8,1828.5,0.7658]
[1746594961694,5.46793434,1828.9,1828.5,6.23454451]
[1746594961896,8.46793434,1828.9,1828.5,6.23454434]
[1746594962616,8.46793434,1828.9,1828.6,0.39372343]
[1746594963111,3.0,1828.9,1828.6,5.86236564]
[1746594963313,3.0,1828.9,1828.6,7.07205664]
[1746594963507,8.46778833,1828.9,1828.6,7.07205664]
[1746594963819,8.46778833,1828.9,1828.6,1.60341443]
[1746594963992,8.46778833,1828.9,1828.6,0.39372343]
[1746594965215,8.46778833,1828.9,1828.6,5.86234846]
[1746594965419,5.46812299,1828.8,1828.6,0.39372343]
[1746594965580,9.26748833,1828.9,1828.6,5.86237446]
[1746594966113,3.0,1828.9,1828.7,5.46835503]
[1746594966307,3.0,1828.9,1828.7,7.42731731]
[1746594966507,3.0,1828.9,1828.8,0.39295026]
[1746594967381,8.46752936,1829.0,1828.8,0.39295026]
[1746594969516,5.46776751,1828.9,1828.8,0.39295026]
[1746594969908,6.27706867,1828.8,1828.5,0.7851]
[1746594970095,6.27706867,1828.8,1828.5,1.95362183]
[1746594973324,5.46836898,1828.7,1828.4,5.46911832]
[1746594973820,6.27706867,1828.8,1828.4,5.46911832]
[1746594974017,6.27706867,1828.8,1828.5,5.46894364]
[1746594974521,6.27706867,1828.8,1828.4,5.46908528]
[1746594975195,5.4688249,1828.6,1828.3,12.27373349]
[1746594975591,5.4688249,1828.6,1828.3,6.23373349]
[1746594975926,5.46852316,1828.7,1828.3,6.23373349]
[1746594976291,5.46852316,1828.7,1828.3,11.70311844]
[1746594976492,5.46852316,1828.7,1828.3,6.23358495]
[1746594977544,5.46872871,1828.6,1828.3,0.7642]
[1746594977854,5.46872871,1828.6,1828.4,0.39351644]
[1746594978035,5.46872871,1828.6,1828.3,0.7642]
[1746594978211,5.46872871,1828.6,1828.4,0.39351644]
[1746594978414,5.46872871,1828.6,1828.3,0.7642]
[1746594978732,5.46872871,1828.6,1828.4,0.39351644]
[1746594979037,5.46872871,1828.6,1828.3,0.7642]
[1746594979198,5.46872871,1828.6,1828.4,0.39351644]
[1746594979399,5.46852316,1828.7,1828.3,6.23369953]
[1746594979613,5.46807317,1828.8,1828.5,5.46886782]
[1746594979823,10.9359106,1828.9,1828.6,0.3927431]
[1746594980026,5.468073,1828.8,1828.6,0.3927431]
[1746594980199,5.46787966,1828.9,1828.6,0.3927431]
[1746594980528,3.0,1828.9,1828.6,11.3299193]
[1746594980725,5.431,1829.0,1828.7,5.46815062]
[1746594980902,5.431,1829.0,1828.8,0.833]
[1746594981108,5.431,1829.0,1828.8,1.22702381]
[1746594981505,10.89863369,1829.0,1828.8,1.22702381]
[1746594981734,5.46776751,1828.9,1828.8,0.39402381]
[1746594981898,5.46776751,1828.9,1828.6,0.833]
[1746594982100,5.46776751,1828.9,1828.8,0.39402381]
[1746594982629,5.46776751,1828.9,1828.6,0.833]
[1746594982832,5.46776751,1828.9,1828.7,0.39441038]
[1746594983023,5.46776751,1828.9,1828.6,0.833]
[1746594983213,5.46776751,1828.9,1828.7,0.39441038]
[1746594983417,5.46776751,1828.9,1828.6,0.833]
[1746594983608,5.46776751,1828.9,1828.7,0.39441038]
[1746594983940,11.70836234,1829.0,1828.6,7.70479251]
[1746594984145,11.70836234,1829.0,1828.8,0.39402381]
[1746594984348,5.46779202,1828.9,1828.7,0.39441038]
[1746594984555,5.46779202,1828.9,1828.6,0.833]
[1746594984718,5.46779202,1828.9,1828.6,2.23613685]
[1746594985119,5.46827844,1828.8,1828.4,0.7786]
[1746594985347,5.46827844,1828.8,1828.4,11.67464536]
[1746594985651,5.46778142,1828.9,1828.5,5.4688421]
[1746594985839,5.46778142,1828.9,1828.5,9.14698495]
[1746594986039,5.46778142,1828.9,1828.5,11.22914798]
[1746594986427,5.46797216,1828.9,1828.5,11.22914798]
[1746594987155,5.46797216,1828.9,1828.5,11.22904892]
[1746594987957,5.431,1829.0,1828.6,3.05779046]
[1746594988135,5.431,1829.0,1828.7,5.46821398]
[1746594988316,5.431,1829.0,1828.7,6.86767067]
[1746594989338,5.46720366,1829.1,1828.8,5.46797475]
[1746594989545,3.8239,1829.2,1828.9,0.7573]
[1746594989723,9.29096628,1829.2,1828.9,0.7573]
[1746594989922,3.8239,1829.2,1828.9,0.7573]
[1746594990364,9.2909696,1829.2,1828.9,0.7573]
[1746594990854,3.0,1829.2,1828.9,6.8474761]
[1746594991059,3.0,1829.2,1828.9,6.84742188]
[1746594991230,8.4668936,1829.2,1828.9,1.37982165]
[1746594991434,13.93400489,1829.2,1828.9,1.37982165]
[1746594991651,8.4668936,1829.2,1828.9,1.37982165]
[1746594992654,8.4668936,1829.2,1829.0,0.38895686]
[1746594993168,5.46722508,1829.1,1829.0,0.38895686]
[1746594993363,8.4668936,1829.2,1829.0,0.38895686]
[1746594993958,3.0,1829.2,1829.0,0.38895686]
[1746594994453,11.67384443,1829.4,1829.0,0.38895686]
[1746594994454,6.27744512,1829.5,1829.1,6.24986652]
[1746594994632,6.27744512,1829.5,1829.1,6.63857693]
[1746594995160,11.7436534,1829.5,1829.1,6.63857693]
[1746594995670,6.27744512,1829.5,1829.1,6.63857693]
[1746594996970,6.27744512,1829.5,1829.1,6.63838128]
[1746594997168,3.0,1829.6,1829.2,6.13050458]
[1746594997348,3.0,1829.6,1829.3,5.85440164]
[1746594997546,8.46568789,1829.6,1829.3,5.85440164]
[1746594998274,8.46568789,1829.6,1829.3,6.67920164]
[1746594998881,20.5204,1829.7,1829.3,1.21273766]
[1746594998882,19.709,1829.7,1829.3,1.21273766]
[1746594999048,10.89524038,1829.8,1829.3,1.21273766]
[1746594999049,6.2491,1829.9,1829.6,0.8248]
[1746594999280,5.43,1829.9,1829.6,6.29031389]
[1746594999477,5.43,1829.9,1829.7,0.38447993]
[1746594999691,5.46507815,1829.8,1829.7,0.38447993]
[1746594999897,7.92018758,1829.8,1829.7,0.38447993]
[1746595000063,5.4656238,1829.7,1829.3,11.50640904]
[1746595000278,5.4656238,1829.7,1829.3,11.50635893]
[1746595002205,5.4656238,1829.7,1829.3,16.97274521]
[1746595002365,5.46520953,1829.8,1829.5,0.7904]
[1746595005180,10.93053034,1829.8,1829.5,0.7904]
[1746595005403,5.46520953,1829.8,1829.5,0.7904]
[1746595005769,5.46541999,1829.7,1829.4,5.4660667]
[1746595005964,5.46520953,1829.8,1829.4,6.55931702]
[1746595006670,5.46554032,1829.7,1829.4,1.09325032]
[1746595007308,5.46554032,1829.7,1829.4,6.55947384]
[1746595007694,5.46554032,1829.7,1829.5,0.38152092]
[1746595008205,5.46522626,1829.8,1829.5,0.38152092]
[1746595010107,10.93058754,1829.8,1829.5,0.38152092]
[1746595010336,5.4655179,1829.7,1829.5,0.38152092]
[1746595010610,5.4655179,1829.7,1829.3,10.91935295]
[1746595010786,5.4655179,1829.7,1829.6,0.38113469]
[1746595010975,5.4655179,1829.7,1829.3,10.91935295]
[1746595011176,5.4655179,1829.7,1829.4,0.38190719]
[1746595012412,5.4659743,1829.5,1829.4,0.38190719]
[1746595012611,5.4659743,1829.5,1829.2,0.8318]
[1746595012822,5.4659743,1829.5,1829.4,0.38203183]
[1746595012979,5.46640394,1829.4,1829.0,6.27107328]
[1746595013170,5.46640394,1829.4,1829.1,1.01029822]
[1746595013370,5.46640394,1829.4,1829.1,6.47744583]
[1746595014813,5.46640394,1829.4,1829.1,1.01029822]
[1746595015009,5.46599662,1829.5,1829.1,1.01029822]
[1746595015308,5.46599662,1829.5,1829.1,6.47729221]
[1746595015512,10.93220316,1829.5,1829.1,6.47729221]
[1746595015689,5.46628646,1829.4,1829.1,6.47729221]
[1746595016313,5.46628646,1829.4,1829.1,1.01029822]
[1746595016513,5.46597801,1829.5,1829.1,1.01029822]
[1746595016908,5.46597801,1829.5,1829.1,6.47735848]
[1746595017120,5.46639024,1829.4,1829.1,1.01029822]
[1746595017946,5.46639024,1829.4,1829.2,18.0]
[1746595018243,5.46639024,1829.4,1829.3,0.38241814]
[1746595019582,7.37442707,1829.4,1829.3,0.38241814]
[1746595020198,5.46704043,1829.2,1828.8,10.91386241]
[1746595020395,5.46704043,1829.2,1828.9,0.38471003]
[1746595020596,5.46704043,1829.2,1828.8,10.91386241]
[1746595020797,5.46704043,1829.2,1828.9,0.38471003]
[1746595020998,5.46704043,1829.2,1828.8,5.446]
[1746595021199,5.46704043,1829.2,1828.9,0.92931003]
[1746595021925,0.8115,1829.1,1828.9,0.92931003]
[1746595022110,6.27854043,1829.2,1828.9,0.92931003]
[1746595022417,0.8115,1829.2,1828.9,6.3969839]
[1746595022719,9.26138965,1829.3,1828.9,6.3969839]
[1746595022929,14.72820985,1829.3,1828.9,6.3969839]
[1746595023125,14.72823476,1829.3,1828.9,6.3969839]
[1746595023418,5.46687852,1829.2,1828.9,6.3969839]
[1746595023610,9.26145109,1829.3,1828.9,6.3969839]
[1746595023812,14.72831605,1829.3,1828.9,6.3969839]
[1746595024020,9.26145109,1829.3,1829.0,5.46746381]
[1746595024226,3.0,1829.3,1829.0,7.31025046]
[1746595024524,3.0,1829.3,1829.1,5.46701016]
[1746595024728,3.0,1829.5,1829.1,7.76745685]
[1746595024897,5.46546503,1829.7,1829.3,6.25547066]
[1746595025093,3.0,1829.6,1829.3,7.46551498]
[1746595025400,8.4657078,1829.6,1829.4,0.37724508]
[1746595025925,5.4659743,1829.5,1829.4,0.37724508]
[1746595026305,5.4659743,1829.5,1829.2,5.445]
[1746595026500,8.4657078,1829.6,1829.4,0.37724508]
[1746595026728,3.0,1829.6,1829.4,0.7889]
[1746595027025,3.0,1829.6,1829.5,0.37685881]
[1746595027529,3.0,1829.6,1829.4,0.7889]
[1746595027829,3.0,1829.6,1829.5,0.37685881]
[1746595029404,11.7421835,1829.8,1829.5,1.04005862]
[1746595030118,17.20755268,1829.8,1829.5,1.04005862]
[1746595030329,11.7421835,1829.8,1829.5,0.37685881]
[1746595030604,5.46539414,1829.7,1829.5,0.37685881]
[1746595033002,11.74217771,1829.8,1829.5,0.37685881]
[1746595033339,6.2769,1829.8,1829.5,0.37685881]
[1746595033633,5.46567555,1829.6,1829.5,0.37685881]
[1746595033798,6.23867555,1829.6,1829.5,0.37685881]
[1746595033998,6.23867555,1829.6,1829.1,5.436]
[1746595033999,5.46636948,1829.4,1829.1,5.436]
[1746595034199,5.46657191,1829.3,1829.2,0.37801775]
[1746595034534,5.4669529,1829.2,1829.0,9.11914285]
[1746595035131,5.4669529,1829.2,1829.0,3.67814285]
[1746595035337,5.46716964,1829.1,1829.0,3.67814285]
[1746595036138,5.46716964,1829.1,1829.0,21.67814285]
[1746595036539,5.46716964,1829.1,1829.0,18.0]
[1746595037740,5.46716964,1829.1,1829.0,18.37729806]
[1746595038142,5.4669529,1829.2,1829.0,18.37729806]
[1746595038947,10.93411822,1829.2,1829.0,18.37729806]
[1746595040344,5.46716964,1829.1,1829.0,18.37729806]
[1746595041140,5.46707528,1829.2,1829.0,18.37729806]
[1746595042262,8.46669988,1829.3,1829.0,19.13669806]
[1746595042826,3.0,1829.3,1829.0,27.06434727]
[1746595043145,3.0,1829.3,1829.1,5.46716599]
[1746595043552,3.0,1829.3,1829.2,0.37680513]
[1746595043918,3.0,1829.3,1829.1,5.46716599]
[1746595044122,1.23838094,1829.6,1829.2,0.37680513]
[1746595044344,3.0,1829.4,1829.3,0.8285]
[1746595044516,5.46585978,1829.6,1829.3,0.8285]
[1746595044716,10.90251228,1829.7,1829.3,6.67133767]
[1746595045127,5.46568,1829.6,1829.3,1.20491877]
[1746595045525,5.46568,1829.6,1829.3,3.02138593]
[1746595045717,5.46568,1829.6,1829.3,8.48795217]
[1746595046254,10.90258123,1829.7,1829.3,8.48795217]
[1746595047978,5.46568498,1829.6,1829.3,8.48795217]
[1746595048263,10.90246892,1829.7,1829.3,8.48776106]
[1746595048458,10.90246892,1829.7,1829.4,6.31504671]
[1746595048760,10.90246892,1829.7,1829.4,1.2254614]
[1746595049061,10.90246892,1829.7,1829.4,6.69172716]
[1746595049272,10.90246892,1829.7,1829.4,1.2254614]
[1746595050262,5.46583563,1829.6,1829.4,0.37668529]
[1746595050481,5.437,1829.7,1829.4,0.37668529]
[1746595050767,5.46567555,1829.6,1829.4,0.37668529]
[1746595052592,5.4659743,1829.5,1829.4,0.37668529]
[1746595052950,5.4659743,1829.5,1829.1,11.67777875]
[1746595053150,5.4659743,1829.5,1829.4,0.37668529]
[1746595053349,5.4659743,1829.5,1829.1,11.67777875]
[1746595053552,5.4659743,1829.5,1829.4,0.37668529]
[1746595053765,5.4659743,1829.5,1829.1,11.67777875]
[1746595054053,6.27852864,1829.4,1829.1,0.7727]
[1746595054253,6.27852864,1829.4,1829.2,0.37745796]
[1746595054483,6.27852864,1829.4,1829.1,2.85514156]
[1746595054646,6.27852864,1829.4,1829.3,0.37707161]
[1746595054847,5.46679266,1829.3,1829.0,3.67814285]
[1746595055048,5.46678521,1829.3,1829.0,3.67814285]
[1746595055248,6.27864369,1829.4,1829.0,11.83198888]
[1746595055512,5.46644369,1829.4,1829.0,11.83198888]
[1746595056688,8.46616302,1829.5,1829.1,6.23977801]
[1746595056995,3.0,1829.5,1829.2,5.46686401]
[1746595057288,8.46601673,1829.5,1829.2,5.46686401]
[1746595057461,8.46601673,1829.5,1829.1,6.23972134]
[1746595057674,5.46632779,1829.4,1829.1,0.7727]
[1746595058649,8.46615903,1829.5,1829.1,6.23983897]
[1746595058985,5.46627951,1829.4,1829.1,6.23983897]
[1746595060311,8.46615903,1829.5,1829.1,6.23983897]
[1746595060312,8.46616008,1829.5,1829.1,6.23983897]
[1746595061413,13.9323992,1829.5,1829.1,6.23983897]
[1746595061712,5.46636271,1829.4,1829.1,6.23983897]
[1746595062814,8.46615654,1829.5,1829.1,6.23983897]
[1746595064817,8.46615654,1829.5,1829.1,11.70688122]
[1746595065114,8.46615654,1829.5,1829.2,5.46686892]
[1746595065421,8.46615654,1829.5,1829.1,6.23973899]
[1746595066833,5.46628649,1829.4,1829.1,0.7727]
[1746595067039,5.46680963,1829.3,1828.9,15.39806654]
[1746595067545,5.46680963,1829.3,1829.0,0.37823079]
[1746595068070,5.46680963,1829.3,1829.0,5.84568833]
[1746595069036,6.27460963,1829.3,1829.0,5.84568833]
[1746595069404,5.46716964,1829.1,1829.0,0.37823079]
[1746595070338,0.8078,1829.1,1829.0,0.37823079]
[1746595070542,5.46705606,1829.2,1829.0,0.37823079]
[1746595070543,3.0,1829.2,1829.0,0.37823079]
[1746595073437,5.431,1829.3,1829.0,0.37823079]
[1746595073637,5.431,1829.3,1829.0,5.84558569]
[1746595073836,3.0,1829.2,1829.0,0.37823079]
[1746595075917,3.0,1829.2,1829.0,5.84560056]
[1746595076739,3.0,1829.2,1829.0,0.37823079]
[1746595077337,8.46696487,1829.2,1829.0,0.37823079]
[1746595077546,9.24296487,1829.2,1829.0,0.37823079]
[1746595077840,0.92429649,1829.1,1828.8,3.67814285]
[1746595078142,9.24296487,1829.2,1828.8,3.67814285]
[1746595079320,14.71007018,1829.2,1828.7,15.38358543]
[1746595079522,5.46721657,1829.1,1828.7,9.94758543]
[1746595082160,5.46721657,1829.1,1828.7,6.26944258]
[1746595082463,5.46721657,1829.1,1828.8,0.38003001]
[1746595086753,0.7652,1829.0,1828.8,0.38003001]
[1746595086951,5.46795316,1828.9,1828.6,3.67814285]
[1746595087251,5.46795316,1828.9,1828.7,0.38195626]
[1746595087451,5.46795316,1828.9,1828.6,9.14679307]
[1746595087882,5.46795316,1828.9,1828.7,0.38195626]
[1746595088041,5.46795316,1828.9,1828.6,9.14679307]
[1746595088246,5.46795316,1828.9,1828.7,0.38195626]
[1746595088448,5.46795316,1828.9,1828.6,9.14679307]
[1746595088770,5.46795316,1828.9,1828.7,0.38195626]
[1746595089403,5.46795316,1828.9,1828.6,9.14679307]
[1746595089584,9.63804279,1828.9,1828.8,0.38156969]
[1746595089886,5.46806649,1828.8,1828.6,3.67814285]
[1746595090971,9.63804279,1828.9,1828.6,3.67814285]
[1746595091297,5.46876928,1828.6,1828.4,3.67814285]
[1746595091460,5.46866559,1828.6,1828.4,3.67814285]
[1746595091857,6.24345844,1828.7,1828.4,3.67814285]
[1746595095318,6.24345844,1828.7,1828.3,10.90838367]
[1746595095487,11.71206124,1828.7,1828.3,10.90838367]
[1746595095690,5.04248655,1828.7,1828.2,0.8257]
[1746595095918,3.7749,1828.7,1828.4,5.46908124]
[1746595096090,9.24337828,1828.7,1828.3,5.46942895]
[1746595096297,9.24337828,1828.7,1828.2,19.50256958]
[1746595096298,5.46879009,1828.6,1828.2,19.50256958]
[1746595096500,5.46879009,1828.6,1828.3,5.46953452]
[1746595097536,5.46879009,1828.6,1828.4,0.3858696]
[1746595097689,5.46879009,1828.6,1828.3,5.46953452]
[1746595097889,5.46879009,1828.6,1828.4,0.3858696]
[1746595098122,5.46879009,1828.6,1828.3,7.41977512]
[1746595098334,5.46879009,1828.6,1828.4,0.3858696]
[1746595098631,5.46879009,1828.6,1828.3,5.46953452]
[1746595098931,3.7749,1828.7,1828.4,5.85501825]
[1746595099137,3.0,1828.8,1828.5,0.7675]
[1746595099293,3.0,1828.8,1828.6,0.38509626]
[1746595100722,8.46823219,1828.8,1828.6,0.38509626]
[1746595100928,5.4683655,1828.7,1828.6,0.38509626]
[1746595101105,5.4683655,1828.7,1828.3,6.23696897]
[1746595101306,5.4683655,1828.7,1828.4,0.3858696]
[1746595101639,5.4683655,1828.7,1828.3,8.18138429]
[1746595101841,5.4683655,1828.7,1828.5,0.38548291]
[1746595102003,5.4683655,1828.7,1828.4,0.3858696]
[1746595102340,5.4683655,1828.7,1828.5,0.38548291]
[1746595102542,5.4683655,1828.7,1828.3,8.18138429]
[1746595102707,5.4683655,1828.7,1828.4,0.3858696]
[1746595102908,3.0,1828.8,1828.5,6.29688119]
[1746595103107,3.0,1828.8,1828.6,0.38509626]
[1746595103313,8.46821064,1828.8,1828.6,0.38509626]
[1746595105624,13.93656365,1828.8,1828.6,0.38509626]
[1746595106050,8.46821064,1828.8,1828.6,0.38509626]
[1746595106247,3.0,1828.8,1828.6,0.38509626]
[1746595106853,8.4681066,1828.8,1828.6,0.38509626]
[1746595111755,10.48139916,1828.8,1828.6,0.38509626]
[1746595111954,10.48139916,1828.8,1828.4,11.72995634]
[1746595112131,8.4681066,1828.8,1828.5,0.38496949]
[1746595115951,8.4681066,1828.8,1828.5,5.85392713]
[1746595116157,3.0,1828.8,1828.5,5.85379831]
[1746595116454,3.0,1828.8,1828.5,5.85371631]
[1746595117060,8.46807056,1828.8,1828.5,5.85371631]
[1746595117260,3.0,1828.8,1828.5,5.85371631]
[1746595118562,8.46809933,1828.8,1828.5,0.38496949]
[1746595119251,8.46809933,1828.8,1828.5,5.85390904]
[1746595119475,8.46809933,1828.8,1828.5,0.38496949]
[1746595119843,9.93983179,1828.8,1828.5,0.38496949]
[1746595120243,9.93997804,1828.8,1828.5,0.38496949]
[1746595120644,15.40832757,1828.8,1828.5,0.38496949]
[1746595121187,9.93997804,1828.8,1828.5,0.38496949]
[1746595121333,8.46824558,1828.8,1828.5,0.38496949]
[1746595122168,13.93656722,1828.8,1828.5,0.38496949]
[1746595122668,8.46824558,1828.8,1828.5,0.38496949]
[1746595122839,13.93660743,1828.8,1828.5,0.38496949]
[1746595123374,5.46841961,1828.7,1828.5,0.38496949]
[1746595124573,5.46841961,1828.7,1828.3,15.32934664]
[1746595124748,5.46841961,1828.7,1828.6,0.38500289]
[1746595125071,5.46841961,1828.7,1828.3,15.32934664]
[1746595125372,5.46841961,1828.7,1828.3,15.32933461]
[1746595125549,5.46841961,1828.7,1828.4,0.38577623]
[1746595125864,5.46841961,1828.7,1828.3,15.32933461]
[1746595126072,5.46841961,1828.7,1828.5,0.38538954]
[1746595126267,6.86207913,1828.7,1828.4,0.38577623]
[1746595126470,5.46841961,1828.7,1828.6,0.38537631]
[1746595126939,5.46841961,1828.7,1828.3,11.65114974]
[1746595127143,6.24971961,1828.7,1828.4,0.38614965]
[1746595127354,6.24971961,1828.7,1828.3,6.22814974]
[1746595127646,11.71834939,1828.7,1828.4,0.38614965]
[1746595127971,5.46869919,1828.6,1828.3,6.22814974]
[1746595128174,5.46869919,1828.6,1828.4,0.38614965]
[1746595128372,11.71834635,1828.7,1828.3,6.22814974]
[1746595128580,6.24971961,1828.7,1828.4,0.38614965]
[1746595128780,6.24971961,1828.7,1828.3,6.22814974]
[1746595129076,6.24971961,1828.7,1828.5,0.38576296]
[1746595129248,6.24971961,1828.7,1828.4,5.85539359]
[1746595129443,6.24971961,1828.7,1828.6,0.38537631]
[1746595129677,6.24971961,1828.7,1828.5,0.38576296]
[1746595129846,6.24971961,1828.7,1828.6,0.38537631]
[1746595130172,7.72151559,1828.7,1828.3,11.69753594]
[1746595130362,6.24971961,1828.7,1828.4,0.38614965]
[1746595130549,6.24971961,1828.7,1828.3,11.69753594]
[1746595130747,6.24971961,1828.7,1828.5,0.38576296]
[1746595130954,6.24971961,1828.7,1828.4,5.46922752]
[1746595131154,6.24971961,1828.7,1828.5,0.38576296]
[1746595134979,6.24971961,1828.7,1828.3,9.90635911]
[1746595135277,6.24971961,1828.7,1828.4,0.38614965]
[1746595135575,6.24971961,1828.7,1828.3,12.21611234]
[1746595135777,6.24971961,1828.7,1828.4,0.38614965]
[1746595135985,6.24971961,1828.7,1828.3,12.21611234]
[1746595136183,6.24971961,1828.7,1828.4,0.38614965]
[1746595136473,6.24971961,1828.7,1828.3,12.21611234]
[1746595136674,6.24971961,1828.7,1828.5,0.38632305]
[1746595136852,6.24971961,1828.7,1828.4,0.38670974]
[1746595137057,6.24971961,1828.7,1828.6,0.3859364]
[1746595137253,6.24971961,1828.7,1828.5,0.38632305]
[1746595137459,6.24971961,1828.7,1828.6,0.3859364]
[1746595137649,5.4683655,1828.7,1828.6,0.3859364]
[1746595137845,8.46829178,1828.8,1828.4,5.46924146]
[1746595138045,8.46829178,1828.8,1828.6,0.38584304]
[1746595138260,9.94489557,1828.8,1828.7,0.38545644]
[1746595138600,9.94489557,1828.8,1828.4,5.46924146]
[1746595138788,8.46829178,1828.8,1828.7,0.38545644]
[1746595138989,8.46829178,1828.8,1828.4,5.46924146]
[1746595139188,13.93658589,1828.8,1828.5,0.38622969]
[1746595139501,5.46837286,1828.7,1828.5,0.38622969]
[1746595142105,13.93664068,1828.8,1828.5,0.38622969]
[1746595142313,9.29771358,1828.9,1828.5,6.67755293]
[1746595142611,9.29771358,1828.9,1828.5,7.71312251]
[1746595145828,9.29771358,1828.9,1828.7,7.76871988]
[1746595145829,3.0,1828.9,1828.7,7.76871988]
[1746595146032,3.0,1828.9,1828.8,0.8116]
[1746595146334,3.0,1828.9,1828.8,1.19666987]
[1746595148139,11.70385914,1829.3,1828.9,5.46762695]
[1746595148334,10.88875914,1829.3,1829.0,0.38205657]
[1746595148506,3.0,1829.2,1829.0,0.38205657]
[1746595148836,10.88875914,1829.3,1829.0,0.38205657]
[1746595149036,16.35557727,1829.3,1829.0,0.38205657]
[1746595149235,3.0,1829.2,1829.0,0.38205657]
[1746595149439,8.4669007,1829.2,1829.0,0.38205657]
[1746595150648,3.0,1829.2,1829.0,0.38205657]
[1746595151304,31.35981704,1829.7,1829.2,0.8281]
[1746595151532,25.134,1829.7,1829.3,5.84660818]
[1746595151733,30.59942238,1829.7,1829.3,5.84660818]
[1746595152037,10.88742238,1829.7,1829.3,5.84660818]
[1746595153243,5.422,1829.7,1829.3,5.84654036]
[1746595153455,5.422,1829.7,1829.4,6.24491052]
[1746595153659,3.0,1829.7,1829.4,6.24491052]
[1746595153863,3.0,1829.7,1829.5,0.37942485]
[1746595156370,6.2055,1830.0,1829.7,5.46517193]
[1746595156670,6.2055,1830.0,1829.8,0.3782663]
[1746595156671,5.422,1830.0,1829.8,0.3782663]
[1746595157372,5.4643449,1830.1,1829.8,0.3782663]
[1746595157575,7.71449046,1830.3,1829.9,5.4646834]
[1746595157576,10.87770894,1830.3,1829.9,5.4646834]
[1746595157783,3.0,1830.2,1830.0,0.37511519]
[1746595157968,8.46391142,1830.2,1830.0,0.37511519]
[1746595158566,8.46391142,1830.2,1829.8,6.80032723]
[1746595158952,10.92803681,1830.2,1829.9,0.37550125]
[1746595159170,8.46391142,1830.2,1829.9,0.37550125]
[1746595162177,0.76,1830.1,1829.9,0.37550125]
[1746595162384,6.22430546,1830.1,1829.9,0.37550125]
[1746595162554,6.22430546,1830.1,1829.7,10.87937249]
[1746595162756,6.22430546,1830.1,1829.8,5.83644717]
[1746595163167,5.46430546,1830.1,1829.8,5.83644717]
[1746595163375,5.46430546,1830.1,1829.8,0.37140968]
[1746595166714,10.92872895,1830.1,1829.8,0.37140968]
[1746595166873,10.92877832,1830.1,1829.8,0.37140968]
[1746595167263,5.46451897,1830.0,1829.8,0.37140968]
[1746595167788,10.76457075,1830.2,1829.8,5.8363749]
[1746595168092,5.464231,1830.1,1829.8,5.8363749]
[1746595168494,5.464231,1830.1,1829.8,0.37140968]
[1746595172117,13.92813889,1830.2,1829.8,6.6388418]
[1746595172702,8.4640913,1830.2,1829.8,6.6388418]